bitfinex/quotes_ETHUSD_20220227
["timestamp","ask_amount","ask_price","bid_price","bid_amount"]
[1645981506020,0.17971782,2778.6,2778.0,1.32743329]
[1645981506221,1.2243,2778.7,2778.0,1.32743329]
[1645981506420,1.2243,2778.7,2778.1,0.519]
[1645981506620,1.2243,2778.7,2778.2,1.32743329]
[1645981507220,2.48140584,2778.7,2778.2,1.32743329]
[1645981507425,2.48140584,2778.7,2778.3,0.00559955]
[1645981507621,1.2243,2778.7,2778.3,0.00559955]
[1645981507821,1.2243,2778.7,2778.4,1.32840538]
[1645981508021,1.2294,2778.8,2778.4,1.32840538]
[1645981508461,1.2294,2778.8,2778.1,0.519]
[1645981508660,1.2294,2778.8,2778.4,0.00559947]
[1645981508858,0.17987596,2778.7,2778.4,0.00559947]
[1645981509060,1.2294,2778.8,2778.4,0.00559947]
[1645981509461,1.34135477,2778.5,2778.4,0.00559947]
[1645981509665,1.2294,2778.8,2778.4,0.00559947]
[1645981509864,0.17991662,2778.7,2778.4,0.00559947]
[1645981510070,0.17991662,2778.7,2778.5,0.00559944]
[1645981510467,1.2294,2778.8,2778.5,0.00559944]
[1645981510664,1.2294,2778.8,2778.1,0.519]
[1645981510867,1.05598665,2778.7,2778.2,1.32915674]
[1645981511067,1.05598665,2778.7,2778.5,0.00559326]
[1645981512009,1.05598665,2778.7,2777.9,0.519]
[1645981512212,1.05598665,2778.7,2778.5,0.00559326]
[1645981513212,1.05598665,2778.7,2777.9,0.519]
[1645981513412,1.05598665,2778.7,2778.5,0.00548992]
[1645981514213,0.17990282,2778.6,2778.5,0.00548992]
[1645981514618,0.17990282,2778.6,2778.5,0.0056789]
[1645981515618,1.1439,2779.1,2779.0,465.53471053]
[1645981515858,0.1439,2779.1,2779.0,465.53471053]
[1645981516361,1.27259736,2779.1,2779.0,465.53471053]
[1645981518963,1.12869736,2779.1,2779.0,465.53471053]
[1645981520210,9.2939,2779.2,2779.0,465.53471053]
[1645981520415,9.97228269,2779.2,2779.0,465.53471053]
[1645981520614,9.2939,2779.2,2779.0,465.53471053]
[1645981523255,9.97228269,2779.2,2779.0,465.53471053]
[1645981523560,9.2939,2779.2,2779.0,465.53471053]
[1645981524260,8.2939,2779.2,2779.0,465.53471053]
[1645981534618,8.2939,2779.2,2779.0,463.91156251]
[1645981535821,0.14685284,2779.1,2779.0,463.91156251]
[1645981537029,0.14699862,2779.1,2779.0,463.91156251]
[1645981537825,0.14699862,2779.1,2779.0,465.27954824]
[1645981539874,0.67838269,2779.4,2779.0,465.27954824]
[1645981540080,0.0056742,2779.3,2779.1,1.36798573]
[1645981540274,0.0056742,2779.3,2779.1,1.88698573]
[1645981540275,0.14699862,2779.2,2779.1,1.88698573]
[1645981543408,0.82733335,2779.7,2779.1,1.88698573]
[1645981543607,0.00544207,2779.3,2779.2,1.36798573]
[1645981544015,0.15244069,2779.3,2779.2,1.36798573]
[1645981544413,0.15244069,2779.3,2779.1,0.519]
[1645981544612,0.14699862,2779.2,2779.1,0.519]
[1645981544813,0.14699862,2779.3,2779.1,1.88694314]
[1645981545014,0.14699862,2779.2,2779.1,0.519]
[1645981545213,0.14699862,2779.2,2779.1,1.88693053]
[1645981545613,0.14699862,2779.3,2779.1,1.88693053]
[1645981545860,0.14699862,2779.2,2779.1,0.519]
[1645981546060,0.14699862,2779.2,2779.1,1.88684736]
[1645981546265,0.14699862,2779.2,2779.1,1.36784736]
[1645981546666,0.14699862,2779.2,2779.0,463.91156251]
[1645981547061,0.67838269,2779.4,2779.0,463.91156251]
[1645981547062,0.14699862,2779.3,2779.0,463.91156251]
[1645981547260,0.83116246,2779.3,2779.0,463.91156251]
[1645981547462,0.14699862,2779.2,2779.0,463.91156251]
[1645981548067,0.14699862,2779.2,2779.1,1.36809422]
[1645981548264,0.14699862,2779.2,2779.1,1.88709422]
[1645981550714,0.14699862,2779.2,2779.1,1.36809422]
[1645981552016,0.14699862,2779.2,2779.1,1.88709422]
[1645981552616,0.0055921,2779.3,2779.1,2.27441023]
[1645981552821,0.0055921,2779.3,2779.2,0.15613498]
[1645981553020,0.0055921,2779.3,2779.2,1.5242292]
[1645981553268,0.0055921,2779.3,2779.2,2.0432292]
[1645981553562,0.0055921,2779.3,2779.2,2.27427188]
[1645981553761,0.0055921,2779.3,2779.2,2.11259105]
[1645981553963,0.00195204,2779.7,2779.2,2.31071773]
[1645981554162,0.14665331,2779.7,2779.3,1.36809422]
[1645981554366,0.00523323,2779.4,2779.3,1.36809422]
[1645981554567,0.00523323,2779.4,2779.3,1.88709422]
[1645981554966,0.15186449,2779.4,2779.3,1.88709422]
[1645981555167,0.14662569,2779.4,2779.3,1.88709422]
[1645981555367,7.3,2779.8,2779.3,1.88709422]
[1645981555368,0.14662757,2779.7,2779.3,1.88709422]
[1645981555571,0.00541936,2779.5,2779.4,1.36809422]
[1645981555967,0.15205915,2779.5,2779.4,1.88709422]
[1645981556271,0.00541936,2779.5,2779.4,1.88709422]
[1645981556469,1.40980455,2780.1,2779.5,0.00978521]
[1645981556470,0.00195204,2780.1,2779.5,0.00978521]
[1645981556674,2.4935,2780.7,2779.5,0.00978521]
[1645981556675,0.02167387,2780.0,2779.6,2.78655422]
[1645981556876,0.1466499,2779.9,2779.7,1.36809422]
[1645981557122,0.1466499,2779.9,2779.8,0.519]
[1645981557323,0.02167387,2780.0,2779.8,1.88709422]
[1645981557523,0.02167387,2780.0,2779.9,1.36809422]
[1645981557722,3.5,2780.6,2779.9,2.78656422]
[1645981557923,0.02310773,2780.4,2780.0,1.36809422]
[1645981558122,0.14641029,2780.3,2780.1,0.519]
[1645981558534,0.14641029,2780.3,2780.1,0.51758132]
[1645981558924,0.00195204,2780.7,2780.1,0.51758132]
[1645981559125,0.00578034,2780.3,2780.1,0.51758132]
[1645981559429,0.14641029,2780.2,2780.1,0.51758132]
[1645981560229,0.00578039,2780.3,2780.1,0.51758132]
[1645981560433,0.14641029,2780.2,2780.1,0.51758132]
[1645981562159,0.14641029,2780.2,2779.8,0.519]
[1645981562362,0.14641029,2780.2,2779.5,0.00978521]
[1645981562559,0.14641029,2780.1,2779.6,1.36422801]
[1645981562761,0.14641029,2780.0,2779.6,1.36422801]
[1645981562960,0.14641029,2779.9,2779.6,1.36422801]
[1645981563159,0.14641029,2779.8,2779.5,0.00978521]
[1645981563359,0.14641029,2779.7,2779.5,0.00978521]
[1645981563559,0.00195204,2780.0,2779.5,0.00978521]
[1645981563760,0.14625546,2780.0,2779.5,0.00978521]
[1645981563961,0.0057808,2779.8,2779.5,0.00978521]
[1645981564159,0.14625546,2779.7,2779.5,0.00978521]
[1645981565022,0.00195204,2780.0,2779.5,0.00978521]
[1645981565224,0.00578084,2779.7,2779.5,0.00978521]
[1645981566027,0.14629919,2779.6,2779.5,0.00978521]
[1645981566227,0.00578084,2779.7,2779.5,1.37417454]
[1645981566428,0.14629919,2779.6,2779.5,0.00978521]
[1645981566929,0.14629919,2779.6,2779.5,1.37428223]
[1645981567329,0.09629919,2779.6,2779.5,1.37428223]
[1645981567530,1.39018821,2779.6,2779.5,0.00978521]
[1645981567932,0.00578088,2779.7,2779.5,0.00978521]
[1645981568362,0.67838269,2780.1,2779.5,0.00978521]
[1645981568765,0.00578084,2779.7,2779.5,0.00978521]
[1645981569568,1.17035204,2780.1,2779.5,0.00978521]
[1645981569770,1.1684,2780.1,2779.5,0.00978521]
[1645981569966,0.00578084,2779.7,2779.5,0.00978521]
[1645981570766,1.32700566,2780.0,2779.5,0.00978521]
[1645981570971,1.32505362,2780.0,2779.5,0.00978521]
[1645981571270,0.00578084,2779.7,2779.5,0.00978521]
[1645981572023,1.32700566,2780.0,2779.5,0.00978521]
[1645981572223,0.00578084,2779.7,2779.5,0.00978521]
[1645981573220,1.32700566,2780.0,2779.5,0.00978521]
[1645981573420,0.00578084,2779.7,2779.5,0.00978521]
[1645981573624,6.96392,2782.1,2782.0,194.73576822]
[1645981573822,14.57018294,2782.1,2782.0,163.37998358]
[1645981574022,21.09038067,2782.1,2782.0,151.8507314]
[1645981574223,25.52717897,2782.1,2782.0,86.05184816]
[1645981574422,29.39522487,2782.1,2782.0,52.48223087]
[1645981574626,29.39522487,2782.1,2782.0,47.08192087]
[1645981574825,29.39522487,2782.1,2782.0,30.88110827]
[1645981575029,29.39522487,2782.1,2782.0,25.36961743]
[1645981575224,29.39522487,2782.1,2782.0,17.19259563]
[1645981575225,30.39522487,2782.1,2782.0,17.19259563]
[1645981575426,30.39522487,2782.1,2779.5,0.00978521]
[1645981575634,0.91301588,2780.8,2779.5,0.00978521]
[1645981575884,5.1488,2780.7,2779.5,0.00978521]
[1645981576073,12.54288108,2780.7,2779.5,0.00978521]
[1645981576271,0.01282546,2780.2,2779.5,0.00978521]
[1645981576570,0.53182546,2780.2,2779.5,0.00978521]
[1645981576771,0.1438,2780.1,2779.5,0.00978521]
[1645981577172,0.1438,2780.1,2779.7,0.00578121]
[1645981577973,0.1438,2780.1,2779.5,0.00978521]
[1645981578373,0.1438,2780.1,2779.8,0.00578117]
[1645981579174,0.1438,2780.1,2779.5,0.00978521]
[1645981579375,0.1438,2780.1,2779.8,0.00578113]
[1645981580426,0.1438,2780.1,2779.5,0.00978521]
[1645981580628,0.1438,2780.1,2779.8,0.00543356]
[1645981581631,1.1404,2780.2,2779.5,0.00978521]
[1645981582027,1.1404,2780.2,2779.9,1.38058835]
[1645981582230,0.00543253,2780.3,2779.8,0.00543356]
[1645981582833,2.8278,2780.4,2779.7,5.0]
[1645981583029,2.82974593,2780.4,2779.5,0.90953521]
[1645981583274,0.00543264,2780.3,2779.9,0.00543348]
[1645981584265,2.8278,2780.4,2779.5,5.00978521]
[1645981584466,0.00772615,2780.3,2780.0,0.005781]
[1645981584672,0.00578022,2780.3,2780.0,0.005781]
[1645981585476,0.0115605,2780.3,2780.0,0.01156196]
[1645981585674,0.0115605,2780.3,2780.0,0.00578096]
[1645981585675,0.00578028,2780.3,2780.0,0.00578096]
[1645981587917,0.00530233,2780.3,2780.0,0.00530295]
[1645981590123,0.00194593,2780.6,2779.9,5.0]
[1645981590326,18.91614593,2780.7,2780.0,1.52109877]
[1645981590524,0.00530233,2780.3,2780.0,0.00530295]
[1645981591563,0.00544818,2780.3,2780.0,0.00544883]
[1645981592462,1.04753237,2780.6,2779.5,0.00978521]
[1645981592663,0.00544818,2780.3,2780.0,0.00544883]
[1645981593468,0.14574593,2780.6,2780.1,6.0]
[1645981593667,0.1438,2780.6,2780.1,6.0]
[1645981593864,0.00544818,2780.3,2780.1,6.0]
[1645981594265,4.818e-05,2780.3,2780.1,6.0]
[1645981594928,9.17098055,2780.7,2780.1,6.0]
[1645981595934,0.1438,2780.6,2780.1,6.0]
[1645981596329,0.1438,2780.6,2779.7,5.0]
[1645981596533,0.00194593,2780.5,2779.8,1.52123983]
[1645981596730,0.14574593,2780.6,2779.8,1.52123983]
[1645981596932,0.14574593,2780.6,2779.5,0.00978521]
[1645981597130,0.14574593,2780.6,2779.6,1.52125653]
[1645981597332,0.04574593,2780.6,2779.6,1.52125653]
[1645981597529,0.14574593,2780.6,2779.6,1.52125653]
[1645981597729,0.14574593,2780.6,2779.6,6.52125653]
[1645981597929,0.14574593,2780.6,2779.7,1.52125653]
[1645981598374,1.35525452,2780.5,2779.5,0.00978521]
[1645981598574,0.14574593,2780.4,2779.5,0.00978521]
[1645981598970,0.151526,2780.4,2780.0,0.00578096]
[1645981599167,0.14958007,2780.4,2780.0,0.00578096]
[1645981599975,0.14958014,2780.4,2780.1,0.00578092]
[1645981600176,0.00194593,2780.3,2780.1,0.00578092]
[1645981600378,0.1438,2780.2,2780.1,0.00578092]
[1645981600580,0.1438,2780.3,2780.1,0.00578092]
[1645981600779,10.12255452,2780.3,2779.5,0.00978521]
[1645981600979,1.35525452,2780.2,2779.5,0.00978521]
[1645981601184,0.1438,2780.1,2780.0,0.00578096]
[1645981602420,0.1438,2780.1,2779.9,0.00578105]
[1645981602621,0.90491292,2780.0,2779.9,0.00578105]
[1645981602822,1.04871292,2780.0,2779.9,0.00578105]
[1645981603223,1.04871292,2780.0,2779.5,0.00978521]
[1645981603422,0.90491292,2780.2,2779.5,0.00978521]
[1645981603621,14.23289885,2780.3,2779.8,0.00522494]
[1645981603825,0.90491292,2780.2,2779.8,0.00522494]
[1645981604421,13.32604,2780.3,2779.5,0.00978521]
[1645981604422,13.87151292,2780.3,2779.5,0.00978521]
[1645981604626,0.90685885,2780.2,2779.6,1.52136781]
[1645981604826,0.90491292,2780.2,2779.9,0.0052249]
[1645981605025,6.37641292,2780.3,2779.9,0.0052249]
[1645981605626,0.90491292,2780.2,2779.9,0.0052249]
[1645981605865,5.4715,2780.3,2780.0,0.00522482]
[1645981605866,0.90491292,2780.1,2780.0,0.00522482]
[1645981606266,0.90491292,2780.2,2780.0,0.00522482]
[1645981606665,1.04871292,2780.1,2780.0,0.00522482]
[1645981606870,6.84539108,2780.3,2780.0,0.00522482]
[1645981606871,5.3277,2780.3,2780.0,0.00522482]
[1645981607265,5.3277,2780.3,2780.0,0.0052436]
[1645981607564,4.3277,2780.3,2780.0,0.0052436]
[1645981608166,4.3277,2780.3,2779.6,6.17363073]
[1645981608366,4.32964593,2780.3,2779.7,1.52123802]
[1645981608566,4.32964593,2780.3,2780.0,0.00528107]
[1645981608768,5.3277,2780.3,2780.0,0.00528107]
[1645981609621,4.3277,2780.3,2780.0,0.01056214]
[1645981609921,4.3277,2780.3,2780.1,1.43442317]
[1645981610120,2.88458026,2780.4,2780.1,1.43442317]
[1645981610321,3.88458026,2780.4,2780.1,1.43442317]
[1645981610721,1.00528026,2780.4,2780.1,1.43442317]
[1645981610920,1.01043868,2780.4,2780.1,1.43958229]
[1645981611119,0.00515842,2780.4,2780.1,0.00515912]
[1645981612120,0.00515425,2780.4,2780.1,0.00515486]
[1645981614572,0.00516275,2780.4,2780.1,0.00516337]
[1645981615572,0.010313,2780.4,2780.1,0.01031423]
[1645981615771,0.00515025,2780.4,2780.1,0.00515086]
[1645981616777,0.00515025,2780.4,2780.3,1.35013589]
[1645981618222,0.90491292,2780.8,2780.5,5.5]
[1645981618223,0.82351313,2780.8,2780.5,5.5]
[1645981619426,1.49905452,2781.0,2780.5,5.5]
[1645981619623,1.48304452,2781.0,2780.5,5.5]
[1645981620024,1.35525452,2780.9,2780.5,5.5]
[1645981620224,1.35525452,2780.9,2780.3,1.35013589]
[1645981620425,1.35525452,2780.9,2780.1,5.0]
[1645981620624,1.35720045,2780.9,2780.1,5.0]
[1645981620878,0.37077044,2781.4,2780.7,5.0]
[1645981621084,12.66205088,2781.6,2780.7,5.0]
[1645981621085,10.8553,2781.6,2780.7,5.0]
[1645981621275,10.8553,2781.6,2780.9,5.0]
[1645981621474,3.3901,2781.6,2780.9,5.0]
[1645981622778,3.3901,2781.6,2781.0,1.41566936]
[1645981622980,4.3901,2781.6,2781.0,1.41566936]
[1645981623179,0.00344845,2781.4,2781.0,1.41566936]
[1645981624279,0.01379174,2781.8,2781.0,1.41566936]
[1645981624280,0.00344845,2781.3,2781.0,1.41566936]
[1645981624730,0.00344845,2781.3,2781.0,1.36566936]
[1645981625533,0.00578381,2781.3,2781.0,1.36566936]
[1645981626133,0.00578381,2781.3,2780.9,5.0]
[1645981626333,0.00578381,2781.3,2780.4,3.5974321]
[1645981626534,0.00578381,2781.3,2780.8,5.0]
[1645981627333,0.91054196,2781.3,2780.8,5.0]
[1645981628035,0.00308562,2781.2,2780.8,5.0]
[1645981628280,0.00308562,2781.2,2781.0,1.07796781]
[1645981629075,0.00617124,2781.2,2781.0,1.07796781]
[1645981629375,0.00308562,2781.2,2780.8,5.0]
[1645981630377,0.00542302,2781.1,2780.8,6.200584]
[1645981631480,0.01100408,2781.1,2780.8,6.200584]
[1645981631679,0.00558106,2781.1,2780.8,5.0]
[1645981633727,0.01116212,2781.1,2780.8,5.0]
[1645981633928,0.00558106,2781.1,2780.8,5.0]
[1645981634128,0.00558106,2781.1,2780.6,1.28190672]
[1645981634731,0.00558106,2781.1,2780.8,5.0]
[1645981634934,0.00511328,2781.0,2780.8,5.0]
[1645981635132,1.328e-05,2781.0,2780.8,5.0]
[1645981635961,0.90475815,2781.3,2780.8,5.0]
[1645981636766,0.90475815,2781.2,2780.8,5.0]
[1645981637166,0.14573645,2781.7,2780.8,5.0]
[1645981637167,0.90475815,2781.3,2780.8,5.0]
[1645981637571,0.90475815,2781.4,2780.8,5.0]
[1645981638366,0.90475815,2781.4,2780.7,6.37460287]
[1645981638569,0.00578686,2781.2,2780.7,6.37460287]
[1645981638768,0.00578686,2781.2,2780.7,1.37460287]
[1645981638969,0.00578686,2781.2,2780.9,5.0]
[1645981639624,1.0504946,2781.5,2780.9,5.0]
[1645981639826,0.0057869,2781.2,2780.9,5.0]
[1645981640233,0.0057869,2781.2,2780.4,0.00578858]
[1645981640428,0.91054505,2781.2,2780.4,0.00578858]
[1645981640629,0.91054505,2781.2,2780.2,8.5]
[1645981640630,0.90475815,2781.1,2780.2,8.5]
[1645981640827,0.9066946,2781.1,2780.2,8.5]
[1645981641028,0.9066946,2781.1,2780.4,0.00578827]
[1645981641029,0.9124813,2781.1,2780.4,0.00578827]
[1645981641229,0.90475815,2780.9,2780.4,0.00578827]
[1645981641430,0.1438,2781.0,2780.4,0.00578827]
[1645981641431,1.04855815,2780.8,2780.4,0.00578827]
[1645981641632,1.1946,2780.7,2780.4,0.00578827]
[1645981641828,1.1946,2780.7,2779.5,0.00978521]
[1645981642128,1.19653645,2780.7,2780.4,0.00578802]
[1645981642328,1.1946,2780.7,2780.4,0.00578802]
[1645981642528,1.3384,2780.7,2780.4,0.00578802]
[1645981643131,2.24315815,2780.7,2779.5,0.00978521]
[1645981643378,2.1012946,2780.7,2780.4,0.00578796]
[1645981643678,2.09935815,2780.7,2780.4,0.00578796]
[1645981644079,1.04855815,2780.6,2780.4,0.00578796]
[1645981644278,1.04855815,2780.6,2779.5,0.00978521]
[1645981644489,0.90475815,2780.5,2779.5,0.00978521]
[1645981644683,0.90475815,2780.5,2780.4,0.00578796]
[1645981644884,0.70475815,2780.5,2780.4,0.00578796]
[1645981645085,0.84855815,2780.5,2780.4,0.00578796]
[1645981645485,0.84855815,2780.5,2779.5,0.00978521]
[1645981645688,0.1438,2780.4,2780.3,0.00578799]
[1645981646787,0.1438,2780.5,2779.5,0.00978521]
[1645981647021,0.1438,2780.5,2780.2,0.00546678]
[1645981647223,0.6628,2780.5,2780.2,0.00546678]
[1645981647622,3.4722,2780.4,2780.2,0.00546678]
[1645981647831,0.1438,2780.3,2779.5,0.00978521]
[1645981648024,0.1438,2780.3,2779.7,1.20935982]
[1645981648223,0.1438,2780.3,2780.2,0.00546678]
[1645981648428,4.4722,2780.4,2780.2,0.00546678]
[1645981649028,4.4722,2780.4,2779.7,1.20935982]
[1645981649226,4.4722,2780.4,2779.6,5.0]
[1645981650878,4.4722,2780.4,2779.5,5.00978521]
[1645981651075,4.4722,2780.4,2779.6,1.52129457]
[1645981651675,4.4722,2780.4,2779.9,0.00578581]
[1645981652675,4.4722,2780.4,2779.5,5.00978521]
[1645981652878,4.4722,2780.4,2779.8,1.07557619]
[1645981653088,1.0,2780.4,2780.0,0.00578568]
[1645981653278,0.1438,2780.6,2780.0,0.00578568]
[1645981653977,1.04801971,2780.6,2779.5,5.00978521]
[1645981654177,1.04801971,2780.6,2779.6,1.52127188]
[1645981654378,1.04801971,2780.6,2780.2,0.00578556]
[1645981655129,1.04801971,2780.6,2779.5,6.44770427]
[1645981655329,1.04801971,2780.6,2780.3,0.00578547]
[1645981655527,0.1438,2780.6,2780.3,0.00578547]
[1645981655926,3.5,2780.6,2780.3,0.00578547]
[1645981656426,4.5,2780.6,2779.7,5.0]
[1645981656628,4.5,2780.6,2780.3,0.00578543]
[1645981657426,4.5,2780.6,2779.6,5.0]
[1645981657629,4.5,2780.6,2779.7,1.5211972]
[1645981657927,4.5,2780.6,2780.3,0.00559663]
[1645981658668,4.5,2780.6,2779.6,5.0]
[1645981658866,4.5,2780.6,2780.3,0.00559663]
[1645981659267,4.6438,2780.6,2780.3,0.00559663]
[1645981660074,4.6438,2780.6,2779.6,5.0]
[1645981660272,4.6438,2780.6,2780.3,0.00559663]
[1645981660776,1.1438,2780.6,2780.3,0.00559663]
[1645981660971,4.6438,2780.6,2780.3,0.00559663]
[1645981661171,3.6438,2780.6,2780.0,1.38572402]
[1645981661375,4.6438,2780.6,2780.3,0.00545268]
[1645981661774,1.1438,2780.6,2780.3,0.00545268]
[1645981662020,4.6438,2780.6,2780.3,0.00545268]
[1645981662219,4.6438,2780.6,2780.0,1.38572402]
[1645981662220,4.5,2780.6,2780.0,1.38572402]
[1645981662821,4.5,2780.6,2779.9,5.0]
[1645981663423,4.5,2780.6,2779.9,5.53935796]
[1645981663821,4.5,2780.6,2780.1,0.00545586]
[1645981664221,4.5,2780.6,2780.2,1.14706546]
[1645981664422,1.0,2780.6,2780.2,1.14706546]
[1645981664629,0.00193546,2780.8,2780.2,1.14706546]
[1645981664828,4.2144,2780.9,2780.2,1.14706546]
[1645981665028,3.5,2780.8,2780.3,0.00578848]
[1645981665230,3.2144,2780.9,2780.3,0.00578848]
[1645981665629,3.5,2780.8,2780.3,0.00578848]
[1645981665868,3.5,2780.8,2780.2,1.14706546]
[1645981666069,4.11861971,2780.9,2780.2,1.14706546]
[1645981666270,3.5,2780.8,2780.4,0.00578847]
[1645981666670,5.40421971,2780.8,2780.4,0.00578847]
[1645981666868,2.03471971,2780.7,2780.4,0.00578847]
[1645981667069,2.03471971,2780.7,2779.7,5.0]
[1645981667070,3.5,2780.6,2779.7,5.0]
[1645981667268,4.5,2780.6,2779.8,1.52120874]
[1645981667467,4.5,2780.6,2780.4,0.00578847]
[1645981667668,1.0,2780.6,2780.4,0.00578847]
[1645981667869,3.5,2780.6,2780.4,0.00578847]
[1645981668071,4.5,2780.6,2780.4,0.00578847]
[1645981668471,3.5,2780.5,2779.7,5.0]
[1645981668677,3.5,2780.5,2780.4,0.0057884]
[1645981668871,1.0,2780.5,2780.4,0.0057884]
[1645981669072,4.5,2780.6,2780.4,0.0057884]
[1645981669271,3.5,2780.5,2780.4,0.00421291]
[1645981669515,3.5,2780.5,2779.7,5.0]
[1645981669719,4.5,2780.5,2780.4,0.0057884]
[1645981669920,4.5,2780.6,2780.4,0.0057884]
[1645981670121,1.0,2780.5,2780.4,0.0057884]
[1645981670320,3.5,2780.5,2780.4,0.0057884]
[1645981670724,4.5,2780.5,2779.7,5.0]
[1645981670920,3.5,2780.5,2779.8,1.52123273]
[1645981671122,4.5,2780.5,2779.8,1.52123273]
[1645981672223,4.5,2780.5,2780.0,0.00578869]
[1645981673278,4.5,2780.5,2780.1,0.00578861]
[1645981673279,4.49865567,2780.5,2780.1,0.00578861]
[1645981673469,4.64245567,2780.5,2780.1,0.00578861]
[1645981674269,4.64245567,2780.5,2779.7,5.0]
[1645981674469,4.64245567,2780.5,2779.8,1.5212628]
[1645981674674,4.64245567,2780.5,2780.2,0.00578857]
[1645981675374,4.59245567,2780.5,2780.2,0.00578857]
[1645981675776,4.59245567,2780.5,2780.2,0.00578852]
[1645981675974,4.44865567,2780.5,2780.2,0.00578852]
[1645981676876,4.44865567,2780.5,2780.2,0.01088251]
[1645981677131,5.35287538,2780.5,2780.2,0.00509399]
[1645981677330,4.44865567,2780.5,2780.2,0.00509399]
[1645981677530,5.35287538,2780.5,2780.2,0.00509399]
[1645981677930,5.35287538,2780.5,2779.7,5.0]
[1645981678130,5.35287538,2780.5,2780.2,0.00509399]
[1645981679230,5.35287538,2780.5,2779.7,5.0]
[1645981679430,4.44865567,2780.5,2780.2,0.00509399]
[1645981679634,5.35287538,2780.5,2780.2,0.00509399]
[1645981680233,5.35287538,2780.5,2779.7,5.0]
[1645981680435,5.35287538,2780.5,2779.8,1.52121174]
[1645981680779,5.35287538,2780.5,2780.2,0.00545779]
[1645981681178,1.04801971,2780.4,2780.2,0.00545779]
[1645981681377,3.5,2780.3,2780.2,0.00545779]
[1645981681580,0.1438,2780.2,2779.5,0.00978521]
[1645981682179,1.0499538,2780.2,2779.6,1.52141028]
[1645981682377,3.5,2780.1,2779.6,1.52141028]
[1645981682579,4.4061538,2780.1,2779.6,1.52141028]
[1645981682779,5.4061538,2780.1,2779.6,1.52141028]
[1645981682978,5.4061538,2780.1,2779.8,0.00549273]
[1645981684182,5.4061538,2780.1,2779.8,0.00549269]
[1645981685425,5.4061538,2780.1,2779.8,0.0054781]
[1645981686228,5.4061538,2780.1,2779.5,0.00978521]
[1645981686428,5.4061538,2780.1,2779.6,1.52140495]
[1645981686628,5.4061538,2780.1,2779.8,0.0054781]
[1645981687032,0.1438,2780.2,2779.8,0.0054781]
[1645981687033,1.0499538,2780.2,2779.8,0.0054781]
[1645981687232,2.0805538,2780.3,2779.9,1.52130061]
[1645981687431,0.9061538,2780.4,2780.1,1.27791996]
[1645981687632,0.9061538,2780.4,2779.5,0.00978521]
[1645981687831,2.1516538,2780.4,2779.9,0.00531574]
[1645981688031,2.1516538,2780.4,2780.0,6.52122672]
[1645981688288,0.9061538,2780.5,2780.1,1.52122672]
[1645981689078,0.9061538,2780.5,2780.1,2.81818966]
[1645981689277,0.9061538,2780.5,2780.2,0.00532168]
[1645981689684,5.4061538,2780.6,2780.2,0.00532168]
[1645981689882,1.9061538,2780.6,2780.1,1.29696294]
[1645981690181,1.9061538,2780.6,2780.2,1.5264428]
[1645981690381,0.9061538,2780.6,2780.2,0.00532164]
[1645981690581,0.9061538,2780.6,2780.2,5.00532164]
[1645981690982,0.9061538,2780.6,2780.2,0.00532164]
[1645981691185,0.9061538,2780.7,2780.5,5.0]
[1645981691383,0.9061538,2780.7,2780.2,0.00532164]
[1645981691583,0.9061538,2780.7,2780.3,1.52654096]
[1645981691783,0.9061538,2780.6,2780.3,0.00548393]
[1645981692428,0.9061538,2780.7,2780.3,1.22619252]
[1645981692628,0.9061538,2780.7,2780.3,1.23167627]
[1645981692827,0.9061538,2780.6,2780.3,1.23167627]
[1645981693027,0.9061538,2780.6,2780.3,0.00548375]
[1645981693627,0.9061538,2780.6,2780.0,5.54271789]
[1645981693826,0.9061538,2780.6,2780.3,0.00548375]
[1645981694428,0.9061538,2780.7,2780.3,0.00548375]
[1645981694833,4.4061538,2780.6,2780.0,6.34829494]
[1645981695034,4.4061538,2780.6,2780.3,0.00538236]
[1645981695333,5.4061538,2780.6,2780.3,0.00538236]
[1645981695789,0.9061538,2780.5,2780.3,0.00538236]
[1645981696176,4.4061538,2780.4,2780.3,0.00538236]
[1645981696377,4.4061538,2780.4,2780.3,0.00538689]
[1645981696577,5.4061538,2780.4,2780.3,0.00538689]
[1645981696776,5.4061538,2780.4,2780.3,0.00382291]
[1645981697076,1.9061538,2780.4,2780.3,0.00382291]
[1645981697280,0.9061538,2780.4,2779.7,1.52116903]
[1645981698077,1.9061538,2780.5,2779.7,1.52116903]
[1645981698277,0.9061538,2780.5,2780.2,5.0]
[1645981698978,0.9061538,2780.5,2779.6,0.519]
[1645981699179,0.9061538,2780.5,2780.2,5.0]
[1645981699828,0.9061538,2780.5,2780.2,5.00546907]
[1645981700830,1.0,2780.6,2780.2,5.0]
[1645981701027,1.0,2780.6,2780.2,5.00546907]
[1645981701226,4.5,2780.7,2780.2,5.00546907]
[1645981701428,3.5,2780.7,2780.2,5.00546907]
[1645981701626,1.0,2780.7,2780.3,1.52102574]
[1645981701827,4.73696783,2780.8,2780.3,1.52102574]
[1645981702027,0.90741489,2780.7,2780.3,1.52102574]
[1645981702728,2.23710893,2780.8,2780.3,1.52102574]
[1645981702926,0.00560893,2780.8,2780.6,1.12171628]
[1645981703127,4.85685699,2781.0,2780.2,5.0]
[1645981703366,0.00560905,2780.8,2780.3,1.52100044]
[1645981703967,0.00560905,2780.8,2780.4,5.0]
[1645981704167,0.00560905,2780.8,2780.6,1.23402637]
[1645981704368,5.22956289,2781.1,2780.6,1.23402637]
[1645981704369,6.22956289,2781.1,2780.6,1.23402637]
[1645981704574,4.87077044,2781.1,2780.6,6.23402637]
[1645981704771,0.00560631,2780.8,2780.6,6.23402637]
[1645981705775,0.01139116,2780.8,2780.6,6.23402637]
[1645981705970,0.00578485,2780.8,2780.6,6.23402637]
[1645981706670,0.37077044,2781.1,2780.6,6.23402637]
[1645981706872,20.97185699,2781.2,2780.6,6.23402637]
[1645981707123,0.00578485,2780.8,2780.6,6.23402637]
[1645981707323,8.485e-05,2780.8,2780.6,5.0]
[1645981707923,1.35879245,2781.3,2780.6,5.0]
[1645981708523,1.35879245,2781.3,2781.0,1.42634775]
[1645981708722,1.35685699,2781.3,2781.0,1.42634775]
[1645981708926,1.35685699,2781.3,2780.6,5.0]
[1645981709124,3.5,2781.2,2780.6,5.0]
[1645981709325,5.85685699,2781.2,2780.6,5.0]
[1645981709528,5.00065699,2781.2,2780.6,5.0]
[1645981709729,6.00065699,2781.2,2780.6,5.0]
[1645981709930,6.00065699,2781.2,2780.6,1.07819297]
[1645981710127,6.00065699,2781.2,2779.9,2.57427543]
[1645981710335,1.21993546,2781.1,2780.0,1.52093511]